bitfinex-derivatives/quotes_SOLF0:USTF0_20250416
["timestamp","ask_amount","ask_price","bid_price","bid_amount"]
[1744770025519,0.05911325,126.14,126.11,0.05454259]
[1744770027220,0.05911325,126.14,126.12,30.46]
[1744770027420,30.46,126.2,126.13,11.0265038]
[1744770027619,30.46,126.2,126.17,7.9259]
[1744770028420,30.51109703,126.2,126.17,7.98028496]
[1744770029715,0.05109703,126.2,126.19,7.9251]
[1744770031519,0.05109703,126.2,126.18,7.9254]
[1744770031920,0.05109703,126.2,126.17,0.05438496]
[1744770032220,0.05109703,126.2,126.17,7.98048496]
[1744770032411,0.05109703,126.2,126.17,0.05438496]
[1744770033422,0.05109703,126.2,126.18,7.9258]
[1744770033622,0.05109703,126.2,126.17,0.05438496]
[1744770034023,0.05109703,126.2,126.18,7.9257]
[1744770034226,0.05109703,126.2,126.17,0.05438496]
[1744770036229,0.05109703,126.2,126.18,7.9258]
[1744770037427,0.05109703,126.2,126.17,7.98078496]
[1744770037931,0.05109703,126.2,126.18,7.9258]
[1744770038630,0.05109703,126.2,126.17,7.98048496]
[1744770040132,0.05109703,126.2,126.18,7.9257]
[1744770040328,0.05109703,126.2,126.17,0.05438496]
[1744770040729,0.05109703,126.2,126.19,7.9251]
[1744770042435,30.46,126.23,126.22,7.9233]
[1744770042634,32.6012,126.26,126.22,7.9233]
[1744770042930,32.6012,126.26,126.21,7.9236]
[1744770043131,11.0265038,126.25,126.18,32.6355]
[1744770043329,0.05708266,126.23,126.21,7.9236]
[1744770046336,7.97968266,126.23,126.2,7.97748982]
[1744770046536,0.05708266,126.23,126.2,0.05338982]
[1744770048136,0.05708266,126.23,126.21,7.9236]
[1744770052040,0.05708266,126.23,126.22,7.9233]
[1744770053844,0.05708266,126.23,126.21,7.9236]
[1744770055439,7.97998266,126.23,126.2,7.97758982]
[1744770057144,15.03143788,126.23,126.2,7.97758982]
[1744770057644,7.9235,126.22,126.2,0.05338982]
[1744770057838,7.05145522,126.21,126.2,0.05338982]
[1744770059345,14.97535522,126.21,126.2,0.05338982]
[1744770061148,18.94807011,126.21,126.2,0.05338982]
[1744770061946,30.49708266,126.23,126.2,0.05338982]
[1744770062161,0.05708266,126.23,126.2,0.05338982]
[1744770063155,0.05708266,126.23,126.22,7.9233]
[1744770063356,0.05708266,126.23,126.2,0.05338982]
[1744770064056,0.05708266,126.23,126.21,7.9235]
[1744770067960,0.05708266,126.23,126.2,7.97758982]
[1744770068158,11.02417011,126.22,126.2,0.05338982]
[1744770070963,30.49708266,126.23,126.2,0.05338982]
[1744770071653,30.49708266,126.23,126.21,7.9237]
[1744770073160,30.49708266,126.23,126.22,7.9233]
[1744770073458,0.05708266,126.23,126.22,7.9233]
[1744770074259,0.05708266,126.23,126.21,7.9236]
[1744770074860,0.05708266,126.23,126.22,7.9233]
[1744770076958,0.05708266,126.23,126.21,7.9235]
[1744770077561,0.05708266,126.23,126.2,10.18428982]
[1744770077762,0.05708266,126.23,126.2,7.97758982]
[1744770079263,0.05708266,126.23,126.2,0.05338982]
[1744770082567,11.02417011,126.22,126.2,0.05338982]
[1744770083162,7.05450171,126.21,126.2,0.05338982]
[1744770089265,37.47450171,126.21,126.2,0.05338982]
[1744770092873,30.42,126.21,126.2,0.05338982]
[1744770093067,37.47450171,126.21,126.2,0.05338982]
[1744770093974,0.05708266,126.23,126.22,7.9233]
[1744770097274,0.05708266,126.23,126.22,14.97780171]
[1744770097674,30.42,126.27,126.22,7.05450171]
[1744770097875,365.0,126.32,126.26,7.05450171]
[1744770098080,30.42,126.34,126.29,7.05450171]
[1744770098280,38.336,126.34,126.3,14.97240171]
[1744770098579,38.336,126.34,126.2,574.5468]
[1744770098580,7.05450171,126.31,126.24,7.05450171]
[1744770098772,7.05450171,126.27,126.26,0.05420671]
[1744770102683,7.11067256,126.29,126.26,7.97490671]
[1744770104684,7.11067256,126.29,126.27,7.9201]
[1744770104887,0.05617085,126.29,126.26,7.10870842]
[1744770105076,0.05617085,126.29,126.26,9.28030842]
[1744770105682,0.05617085,126.29,126.28,7.9195]
[1744770105883,0.05617085,126.29,126.26,2.22580671]
[1744770106184,0.05617085,126.29,126.28,7.9195]
[1744770107489,0.05617085,126.29,126.27,7.9198]
[1744770108591,7.05450171,126.28,126.26,7.97470671]
[1744770111991,7.05450171,126.28,126.27,7.9201]
[1744770112788,7.05450171,126.28,126.26,0.05420671]
[1744770113695,7.11067256,126.29,126.27,7.9198]
[1744770113891,30.42,126.31,126.28,7.05450171]
[1744770114093,37.45450171,126.34,126.29,7.05450171]
[1744770114288,45.37050171,126.34,126.3,7.05450171]
[1744770114695,45.37050171,126.34,126.31,7.9173]
[1744770114896,45.43086244,126.34,126.31,0.05695037]
[1744770115096,30.46036073,126.34,126.31,0.05695037]
[1744770115594,0.06036073,126.34,126.31,0.05695037]
[1744770115790,0.06036073,126.34,126.32,7.917]
[1744770115995,0.06036073,126.34,126.31,0.05695037]
[1744770117097,0.06036073,126.34,126.32,7.9165]
[1744770117297,0.06036073,126.34,126.31,0.05695037]
[1744770117699,0.06036073,126.34,126.31,7.97425037]
[1744770118499,7.97646073,126.34,126.31,7.97425037]
[1744770118797,7.05450171,126.32,126.31,0.05695037]
[1744770119293,14.97150171,126.32,126.31,0.05695037]
[1744770121201,14.97150171,126.32,126.25,11.27200171]
[1744770121202,11.00657857,126.32,126.25,4.2175]
[1744770121501,11.00657857,126.3,126.25,2.0285]
[1744770121702,11.00657857,126.3,126.25,9.9494]
[1744770121999,11.00657857,126.3,126.25,2.0285]
[1744770122200,0.05743562,126.29,126.26,0.05583833]
[1744770122694,7.9195,126.28,126.26,0.05583833]
[1744770122999,7.9195,126.28,126.26,7.97653833]
[1744770123198,0.05743562,126.29,126.26,0.05583833]
[1744770123391,570.42,126.39,126.28,11.00657857]
[1744770123392,41.40657857,126.37,126.28,11.00657857]
[1744770123700,30.4,126.37,126.3,11.00657857]
[1744770123903,30.4,126.37,126.31,32.5109]
[1744770124197,11.00657857,126.41,126.32,11.00657857]
[1744770124401,0.05949411,126.38,126.35,0.05214777]
[1744770124601,0.05949411,126.38,126.35,30.43156808]
[1744770124802,0.05949411,126.38,126.36,7.9142]
[1744770126503,7.97279411,126.38,126.36,7.9142]
[1744770126699,7.97279411,126.38,126.35,38.34636808]
[1744770127307,0.05949411,126.38,126.35,0.05156808]
[1744770128004,7.9145,126.36,126.35,0.05156808]
[1744770128303,0.05949411,126.38,126.35,0.05156808]
[1744770128700,0.05949411,126.38,126.35,32.52496808]
[1744770129005,7.9111,126.42,126.39,7.9124]
[1744770129205,30.38,126.43,126.39,7.9124]
[1744770129504,41.38657857,126.43,126.36,11.00657857]
[1744770129804,41.38657857,126.43,126.35,32.4734]
[1744770129998,41.38657857,126.43,126.38,0.05410127]
[1744770130305,0.0537552,126.4,126.38,0.05410127]
[1744770131105,7.9128,126.39,126.38,0.05410127]
[1744770132704,7.9658552,126.4,126.38,0.05410127]
[1744770133704,0.0537552,126.4,126.38,0.05410127]
[1744770134607,0.0537552,126.4,126.38,7.96700127]
[1744770135309,7.9657552,126.4,126.38,7.96700127]
[1744770137501,7.9126,126.39,126.38,0.05410127]
[1744770140713,7.9145,126.37,126.34,2.1173]
[1744770141216,7.9145,126.37,126.34,10.0325]
[1744770141620,7.97039484,126.37,126.34,10.08485262]
[1744770142619,7.97039484,126.37,126.35,7.915]
[1744770142923,0.05589484,126.37,126.34,2.16965262]
[1744770144014,0.05589484,126.37,126.34,13.17623119]
[1744770144220,0.05589484,126.37,126.36,7.9145]
[1744770144521,30.36,126.43,126.36,41.36657857]
[1744770144723,30.36,126.43,126.38,7.9132]
[1744770145021,7.9121,126.4,126.38,7.9132]
[1744770145418,7.9126,126.39,126.37,7.9136]
[1744770145624,7.9126,126.39,126.38,0.05120331]
[1744770148821,41.42263466,126.4,126.3,581.00657857]
[1744770149025,11.00657857,126.37,126.3,600.36]
[1744770149221,41.36657857,126.37,126.3,30.36]
[1744770149529,7.9166,126.33,126.3,38.2777]
[1744770149731,11.00657857,126.35,126.28,2.1267]
[1744770150025,7.9173,126.32,126.3,0.0500895]
[1744770150426,7.97232788,126.33,126.3,7.9682895]
[1744770152025,7.9171,126.32,126.3,7.9682895]
[1744770152328,7.9171,126.32,126.3,0.0500895]
[1744770152926,7.9171,126.32,126.3,7.9679895]
[1744770155226,7.97232788,126.33,126.3,7.9679895]
[1744770155432,0.05562788,126.33,126.3,7.9679895]
[1744770155834,0.05562788,126.33,126.3,0.0500895]
[1744770156326,7.9176,126.31,126.3,0.0500895]
[1744770157533,0.05562788,126.33,126.3,0.0500895]
[1744770158131,7.9174,126.32,126.3,7.9679895]
[1744770158433,0.05562788,126.33,126.3,0.0500895]
[1744770158822,7.9176,126.31,126.3,0.0500895]
[1744770165244,38.2976,126.31,126.3,0.0500895]
[1744770165440,30.38,126.31,126.23,2.0676]
[1744770165738,11.00657857,126.28,126.21,34.4851]
[1744770165940,7.9211,126.26,126.21,34.4851]
[1744770166338,0.06074331,126.25,126.22,7.98273491]
[1744770166636,7.98214331,126.25,126.22,7.98273491]
[1744770167835,0.06074331,126.25,126.22,0.06003491]
[1744770168443,7.9226,126.23,126.22,0.06003491]
[1744770170042,7.9254,126.19,126.16,2.013]
[1744770170242,7.9254,126.19,126.16,9.9399]
[1744770170938,7.97835042,126.19,126.16,9.99230431]
[1744770171543,7.97835042,126.19,126.17,7.9263]
[1744770171743,0.05295042,126.19,126.17,7.9263]
[1744770171944,0.05295042,126.19,126.16,2.06540431]
[1744770172645,0.05295042,126.19,126.18,7.9258]
[1744770174145,0.05295042,126.19,126.16,2.06540431]
[1744770174146,0.05295042,126.19,126.17,7.9262]
[1744770174650,7.97815042,126.19,126.16,9.99210431]
[1744770174943,0.05295042,126.19,126.16,9.99210431]
[1744770175133,0.05295042,126.19,126.16,2.06540431]
[1744770176034,0.05295042,126.19,126.18,7.9258]
[1744770177346,7.9227,126.23,126.2,7.9243]
[1744770177742,30.38,126.24,126.18,30.38]
[1744770177937,7.9233,126.22,126.19,7.9249]
[1744770178545,7.97893139,126.22,126.19,7.98364362]
[1744770178948,0.05563139,126.22,126.2,7.9244]
[1744770180146,7.97913139,126.22,126.19,7.98354362]
[1744770180850,7.97913139,126.22,126.2,7.9244]
[1744770181249,0.05563139,126.22,126.2,7.9244]
[1744770181957,0.05563139,126.22,126.21,7.9239]
[1744770183150,30.38,126.27,126.2,45.51397857]
[1744770183455,11.00657857,126.36,126.22,11.00657857]
[1744770183456,30.38,126.3,126.22,11.00657857]
[1744770183652,7.9193,126.29,126.27,7.92]
[1744770184154,7.97965718,126.29,126.27,7.97985845]
[1744770184649,0.06035718,126.29,126.28,7.9195]
[1744770185053,0.06035718,126.29,126.27,0.05985845]
[1744770185252,7.97955718,126.29,126.27,7.97965845]
[1744770185454,0.06035718,126.29,126.27,0.05985845]
[1744770186153,7.9195,126.28,126.27,0.05985845]
[1744770186349,0.06035718,126.29,126.27,0.05985845]
[1744770186754,7.97945718,126.29,126.27,0.05985845]
[1744770186955,0.06035718,126.29,126.27,0.05985845]
[1744770187653,7.97945718,126.29,126.27,0.05985845]
[1744770188055,0.06035718,126.29,126.27,0.05985845]
[1744770188257,7.9195,126.28,126.27,0.05985845]
[1744770191660,7.9214,126.25,126.22,2.1925]
[1744770191960,7.9214,126.25,126.21,2.0174]
[1744770192151,7.9214,126.25,126.22,7.9227]
[1744770192350,11.00657857,126.26,126.22,7.9227]
[1744770192351,7.9222,126.24,126.22,7.9227]
[1744770192757,7.98253427,126.24,126.22,7.98177355]
[1744770193660,7.98253427,126.24,126.22,0.05907355]
[1744770194657,7.9226,126.23,126.22,0.05907355]
[1744770200367,7.9254,126.19,126.16,2.1087]
[1744770200862,7.9254,126.19,126.17,7.9263]
[1744770201166,7.9254,126.19,126.16,2.1087]
[1744770201361,7.98407647,126.19,126.17,0.0588304]
[1744770203267,7.98407647,126.19,126.17,7.9852304]
[1744770203468,7.98407647,126.19,126.17,0.0588304]
[1744770203768,7.98407647,126.19,126.17,7.9851304]
[1744770204570,0.05867647,126.19,126.18,7.9258]
[1744770204776,41.36657857,126.24,126.17,30.4188304]
[1744770204961,11.00657857,126.26,126.18,11.00657857]
[1744770205165,30.36,126.27,126.18,11.00657857]
[1744770205365,30.36,126.27,126.2,11.00657857]
[1744770205566,30.36,126.27,126.2,41.36657857]
[1744770205771,7.97579629,126.25,126.23,7.9225]
[1744770207571,0.05409629,126.25,126.22,0.05819406]
[1744770209067,7.97579629,126.25,126.23,7.9225]
[1744770211476,7.9226,126.23,126.22,0.05819406]
[1744770213178,7.9222,126.24,126.22,0.05819406]
[1744770213367,0.05409629,126.25,126.22,0.05819406]
[1744770213977,7.9224,126.24,126.22,7.98129406]
[1744770214975,7.97579629,126.25,126.23,7.9226]
[1744770215776,0.05409629,126.25,126.22,0.05819406]
[1744770216876,0.05409629,126.25,126.24,7.922]
[1744770217976,7.97549629,126.25,126.23,7.9224]
[1744770219780,0.05409629,126.25,126.24,7.922]
[1744770221479,7.9198,126.28,126.26,7.9206]
[1744770221980,7.9198,126.28,126.23,32.4178]
[1744770222476,0.05492022,126.27,126.24,0.0512865]
[1744770223384,7.97542022,126.27,126.24,7.9727865]
[1744770223777,7.97542022,126.27,126.25,7.9213]
[1744770224983,7.97542022,126.27,126.24,7.9728865]
[1744770226586,7.9208,126.26,126.24,7.9728865]
[1744770227287,7.9214,126.25,126.24,0.0512865]
[1744770229582,7.9232,126.23,126.2,30.36]
[1744770229781,11.00657857,126.26,126.2,30.36]
[1744770229988,11.00657857,126.26,126.21,7.9236]
[1744770230188,7.9228,126.23,126.21,7.9236]
[1744770230686,7.97950091,126.23,126.21,7.97773235]
[1744770233084,7.9233,126.22,126.21,0.05413235]
[1744770233589,0.05670091,126.23,126.21,0.05413235]
[1744770234492,0.05670091,126.23,126.22,7.9233]
[1744770237092,0.05670091,126.23,126.21,0.05413235]
[1744770237093,7.9205,126.27,126.25,7.9213]
[1744770237289,30.34,126.29,126.23,30.34]
[1744770237497,11.00657857,126.32,126.28,7.9192]
[1744770237995,0.0590161,126.31,126.29,7.97327269]
[1744770238489,0.0590161,126.31,126.29,0.05477269]
[1744770238694,0.0590161,126.31,126.3,7.9182]
[1744770239393,0.0590161,126.31,126.29,0.05477269]
[1744770239893,0.0590161,126.31,126.29,7.97307269]
[1744770240691,0.0590161,126.31,126.29,0.05477269]
[1744770240893,11.00657857,126.3,126.29,0.05477269]
[1744770241287,0.0590161,126.31,126.29,0.05477269]
[1744770241894,7.9767161,126.31,126.29,7.97337269]
[1744770242196,7.9767161,126.31,126.29,0.05477269]
[1744770242590,7.9182,126.3,126.29,0.05477269]
[1744770243491,7.9769161,126.31,126.29,0.05477269]
[1744770243697,0.0590161,126.31,126.29,0.05477269]
[1744770244596,0.0590161,126.31,126.29,7.97317269]
[1744770244894,7.9771161,126.31,126.29,0.05477269]
[1744770245092,0.0590161,126.31,126.29,0.05477269]
[1744770246396,18.92477857,126.3,126.29,0.05477269]
[1744770246591,49.26477857,126.3,126.29,0.05477269]
[1744770248296,41.34657857,126.3,126.23,30.34]
[1744770248600,7.9204,126.27,126.24,7.9217]
[1744770248893,11.00657857,126.28,126.23,30.34]
[1744770249097,18.92757857,126.26,126.24,0.05460323]
[1744770250697,7.9214,126.25,126.24,0.05460323]
[1744770251099,11.00657857,126.26,126.24,0.05460323]
[1744770251700,18.92757857,126.26,126.24,0.05460323]
[1744770251998,11.00657857,126.26,126.24,0.05460323]
[1744770252198,0.05932676,126.27,126.24,0.05460323]
[1744770252593,0.05932676,126.27,126.26,7.9207]
[1744770252992,11.00657857,126.36,126.26,38.26]
[1744770253199,11.00657857,126.36,126.27,11.00657857]
[1744770253402,11.00657857,126.34,126.27,2.1335]
[1744770253591,11.00657857,126.32,126.3,7.9181]
[1744770253790,11.00657857,126.32,126.27,2.1335]
[1744770253991,0.05449562,126.31,126.28,0.0603842]
[1744770255002,0.05449562,126.31,126.3,7.9182]
[1744770256100,41.34657857,126.36,126.33,7.9158]
[1744770256705,7.9152,126.35,126.33,7.9158]
[1744770257202,7.96747328,126.35,126.33,7.96989765]
[1744770257602,18.92227857,126.34,126.33,0.05409765]
[1744770258503,11.00657857,126.34,126.27,2.1335]
[1744770258799,11.00657857,126.32,126.27,32.4735]
[1744770259099,17.60460776,126.33,126.27,32.4735]
[1744770259298,7.9179,126.31,126.29,7.9185]
[1744770259492,7.97229288,126.31,126.29,7.97376411]
[1744770259801,0.05439288,126.31,126.29,7.97376411]
[1744770261201,7.97209288,126.31,126.29,7.97376411]
[1744770261808,0.05439288,126.31,126.3,7.9182]
[1744770262497,7.9162,126.34,126.32,7.9169]
[1744770262902,7.9162,126.34,126.3,30.32]
[1744770263105,7.9165,126.33,126.31,7.9173]
[1744770263502,0.05920109,126.33,126.31,7.97488133]
[1744770264702,0.05920109,126.33,126.32,7.917]
[1744770265505,0.05920109,126.33,126.31,7.97488133]
[1744770266204,0.05920109,126.33,126.32,7.917]
[1744770266810,47.90460776,126.42,126.31,17.66218909]
[1744770267002,47.90460776,126.42,126.31,21.67390776]
[1744770267207,7.9127,126.39,126.37,7.9136]
[1744770267808,7.96750847,126.39,126.37,7.97376321]
[1744770269003,0.05480847,126.39,126.38,7.9132]
[1744770270110,7.96740847,126.39,126.37,7.97396321]
[1744770272523,7.9132,126.38,126.37,0.06016321]
[1744770274820,25.51780776,126.38,126.37,0.06016321]
[1744770276923,0.05480847,126.39,126.37,0.06016321]
[1744770277621,0.05480847,126.39,126.38,7.9132]
[1744770278920,0.05480847,126.39,126.37,0.06016321]
[1744770279316,7.9132,126.38,126.37,0.06016321]
[1744770279517,0.05480847,126.39,126.37,0.06016321]
[1744770280425,7.9132,126.38,126.37,0.06016321]
[1744770280630,0.05480847,126.39,126.37,0.06016321]
[1744770281326,7.96760847,126.39,126.37,0.06016321]
[1744770281620,0.05480847,126.39,126.37,0.06016321]
[1744770284031,18.95576451,126.39,126.37,0.06016321]
[1744770284829,7.9132,126.38,126.37,0.06016321]
[1744770293428,7.9159,126.34,126.32,32.4473]
[1744770293733,10.98805604,126.34,126.29,30.28]
[1744770294031,10.98805604,126.34,126.31,7.9176]
[1744770294533,11.04539593,126.34,126.31,7.96984565]
[1744770295034,18.96149593,126.34,126.31,7.96984565]
[1744770296134,7.9164,126.33,126.31,7.96984565]
[1744770297236,0.05733989,126.34,126.31,0.05224565]
[1744770297837,0.05733989,126.34,126.33,7.9164]
[1744770299436,41.26805604,126.39,126.35,7.9149]
[1744770300135,7.9141,126.37,126.35,7.9149]
[1744770300439,7.97139164,126.37,126.35,7.9704775]
[1744770300737,7.97139164,126.37,126.35,0.0555775]
[1744770300939,18.95944768,126.37,126.35,0.0555775]
[1744770301139,7.9145,126.36,126.35,0.0555775]
[1744770302533,41.26805604,126.36,126.29,30.28]
[1744770302737,10.98805604,126.31,126.27,2.0783]
[1744770302937,7.9186,126.3,126.27,2.0783]
[1744770303137,7.9186,126.3,126.26,32.4243]
[1744770303138,10.98805604,126.31,126.26,2.1443]
[1744770303442,7.9199,126.28,126.27,0.05812193]
[1744770303738,30.33656523,126.3,126.26,0.06102727]
[1744770303936,0.05472561,126.29,126.26,0.06102727]
[1744770305148,0.05472561,126.29,126.27,7.9196]
[1744770306342,7.97372561,126.29,126.27,7.9196]
[1744770307544,0.05472561,126.29,126.27,7.9196]
[1744770308737,0.05472561,126.29,126.28,7.9195]
[1744770308943,30.3,126.33,126.27,30.3]
[1744770309142,10.98805604,126.35,126.28,2.1559]
[1744770309345,7.916,126.34,126.28,2.1559]
[1744770309535,7.916,126.34,126.29,2.0924]
[1744770309945,0.05434097,126.33,126.31,7.9172]
[1744770310245,0.05434097,126.33,126.3,0.05357866]
[1744770310744,0.05434097,126.33,126.31,7.9176]
[1744770311435,0.05434097,126.33,126.32,7.917]
[1744770312944,0.05434097,126.33,126.3,0.05357866]
[1744770313343,11.04239701,126.33,126.3,0.05357866]
[1744770313842,7.9174,126.32,126.3,7.97157866]
[1744770317747,7.9174,126.32,126.31,7.9176]
[1744770317945,7.97104097,126.33,126.31,7.9176]
[1744770319945,0.05434097,126.33,126.32,7.917]
[1744770321550,0.05434097,126.33,126.31,7.9172]
[1744770322049,0.05434097,126.33,126.3,2.08727866]
[1744770322551,0.05434097,126.33,126.31,7.917]
[1744770323450,11.04239701,126.33,126.3,0.05357866]
[1744770324150,7.9176,126.31,126.3,0.05357866]
[1744770329653,18.90565604,126.31,126.3,0.05357866]
[1744770329853,10.98805604,126.31,126.26,4.2028]
[1744770330047,7.9195,126.28,126.26,7.9205]
[1744770330653,7.9191,126.29,126.27,7.9201]
[1744770330954,7.971694,126.29,126.27,7.97120672]
[1744770331557,0.052594,126.29,126.27,7.97120672]
[1744770331757,0.052594,126.29,126.28,7.9195]
[1744770332055,12.98595604,126.35,126.28,30.28]
[1744770332254,7.916,126.34,126.31,7.9172]
[1744770332456,7.916,126.34,126.28,32.2979]
[1744770332850,0.05978126,126.32,126.3,0.05123595]
[1744770333357,0.05978126,126.32,126.3,7.96913595]
[1744770333655,0.05978126,126.32,126.3,0.05123595]
[1744770334152,0.05978126,126.32,126.31,7.9176]
[1744770335056,0.05978126,126.32,126.3,7.96913595]
[1744770335457,7.97688126,126.32,126.3,7.96913595]
[1744770335657,0.05978126,126.32,126.3,0.05123595]
[1744770336554,7.97698126,126.32,126.3,7.96923595]
[1744770337448,7.97698126,126.32,126.3,0.05123595]
[1744770337449,7.9176,126.31,126.3,0.05123595]
[1744770342858,7.9197,126.28,126.26,7.9204]
[1744770343155,10.98805604,126.35,126.28,7.9191]
[1744770343354,13.04975604,126.36,126.27,10.98805604]
[1744770343561,10.98805604,126.36,126.28,2.0116]
[1744770343762,0.05397427,126.33,126.32,7.9167]
[1744770344557,7.9136,126.38,126.35,7.915]
[1744770344757,122.6795559,126.42,126.33,15.13435604]
[1744770345255,7.9118,126.41,126.38,7.9128]
[1744770345653,7.96676605,126.41,126.38,7.96386121]
[1744770345860,0.05496605,126.41,126.38,0.05106121]
[1744770346262,0.05496605,126.41,126.39,7.9122]
[1744770346562,0.05496605,126.41,126.38,0.05106121]
[1744770347060,0.05496605,126.41,126.38,30.33106121]
[1744770348662,0.05496605,126.41,126.39,7.9122]
[1744770349664,7.96636605,126.41,126.38,38.24396121]
[1744770350156,0.05496605,126.41,126.38,38.24396121]
[1744770351165,7.912,126.4,126.38,38.24396121]
[1744770351362,7.912,126.4,126.38,7.96396121]
[1744770352465,7.912,126.4,126.38,0.05106121]
[1744770352668,7.9126,126.39,126.38,0.05106121]
[1744770353360,43.38455604,126.4,126.33,12.0621]
[1744770353565,10.98805604,126.37,126.33,7.9158]
[1744770354062,7.9147,126.36,126.33,7.9158]
[1744770354263,7.9147,126.36,126.34,7.9157]
[1744770354470,7.97128836,126.36,126.34,7.97217346]
[1744770357572,7.97128836,126.36,126.34,0.05647346]
[1744770357872,18.90315604,126.35,126.34,0.05647346]
[1744770360275,7.9174,126.32,126.29,38.1586]
[1744770360478,10.98805604,126.32,126.29,30.24]
[1744770360776,10.98805604,126.32,126.27,4.1441]
[1744770361076,10.98805604,126.32,126.26,30.24]
[1744770361575,0.05035984,126.3,126.28,0.05929257]
[1744770361777,11.03841588,126.3,126.28,0.05929257]
[1744770362976,7.9189,126.29,126.28,0.05929257]
[1744770367682,0.05035984,126.3,126.28,0.05929257]
[1744770368183,7.9149,126.36,126.33,7.9164]
[1744770368382,7.9149,126.36,126.29,43.29935604]
[1744770368582,7.9149,126.36,126.3,2.1319]
[1744770369284,0.05333988,126.34,126.32,0.05657983]
[1744770371185,7.96933988,126.34,126.32,0.05657983]
[1744770371486,7.96933988,126.34,126.32,7.97337983]
[1744770371684,0.05333988,126.34,126.32,0.05657983]
[1744770373089,41.24805604,126.4,126.32,30.31657983]
[1744770373286,41.24805604,126.4,126.33,13.10265604]
[1744770373490,7.9132,126.39,126.36,7.9141]
[1744770373784,30.26,126.4,126.33,13.10265604]
[1744770373990,10.98805604,126.42,126.33,13.10265604]
[1744770374189,0.05115802,126.39,126.36,0.05948874]
[1744770374589,0.05115802,126.39,126.37,7.9139]
[1744770378990,0.05115802,126.39,126.36,0.05948874]
[1744770379494,7.9137,126.38,126.36,0.05948874]
[1744770384093,7.9139,126.37,126.36,0.05948874]
[1744770384493,38.1539,126.37,126.36,0.05948874]
[1744770385597,10.98805604,126.38,126.36,0.05948874]
[1744770385795,0.05115802,126.39,126.36,0.05948874]
[1744770386696,0.05115802,126.39,126.38,7.9132]
[1744770396301,30.24,126.43,126.42,7.9107]
[1744770399003,38.1501,126.43,126.41,0.05207125]
[1744770399602,38.1501,126.43,126.41,7.96337125]
[1744770400301,11.03813947,126.44,126.43,7.9101]
[1744770400503,0.05008343,126.44,126.43,7.9101]
[1744770401500,0.05008343,126.44,126.41,0.05207125]
[1744770402003,0.05008343,126.44,126.42,7.9102]
[1744770403508,7.95958343,126.44,126.42,7.9102]
[1744770403807,11.03813947,126.44,126.41,0.05207125]
[1744770404205,7.9106,126.43,126.41,0.05207125]
[1744770404502,11.03813947,126.44,126.41,0.05207125]
[1744770405409,7.9101,126.43,126.41,0.05207125]
[1744770405607,11.03813947,126.44,126.41,0.05207125]
[1744770407411,7.9107,126.42,126.41,0.05207125]
[1744770407611,18.89875604,126.42,126.41,0.05207125]
[1744770409213,7.9107,126.42,126.41,0.05207125]
[1744770415320,7.9104,126.43,126.41,0.05207125]
[1744770417120,7.0291647,126.42,126.41,0.05207125]
[1744770418321,37.27924813,126.44,126.41,0.05207125]
[1744770419224,37.27924813,126.44,126.42,7.9106]
[1744770419428,37.27924813,126.44,126.41,0.05207125]
[1744770419825,7.07924813,126.44,126.41,0.05207125]
[1744770420731,0.05008343,126.44,126.41,7.08123595]
[1744770420931,0.05008343,126.44,126.41,37.28123595]
[1744770421630,0.05008343,126.44,126.43,7.9101]
[1744770424631,7.0291647,126.47,126.46,7.9082]
[1744770427032,7.0291647,126.47,126.45,7.96546647]
[1744770427240,14.9367647,126.47,126.45,7.96546647]
[1744770427531,7.0291647,126.46,126.45,0.05696647]
[1744770428232,7.0291647,126.47,126.45,7.96516647]
[1744770428930,7.0841546,126.48,126.46,7.9082]
[1744770429129,7.0841546,126.48,126.45,0.05696647]
[1744770429130,0.0549899,126.48,126.45,0.05696647]
[1744770429530,0.0549899,126.48,126.47,7.9076]
[1744770430434,37.2291647,126.53,126.47,7.0291647]
[1744770430633,37.2291647,126.53,126.48,7.0291647]
[1744770431134,45.1335647,126.53,126.5,7.9053]
[1744770431330,45.18440005,126.53,126.5,7.96242088]
[1744770431536,7.0291647,126.52,126.5,7.96242088]
[1744770431835,14.9337647,126.52,126.5,7.96242088]
[1744770432237,7.9051,126.51,126.5,0.05712088]
[1744770432434,14.9342647,126.51,126.5,0.05712088]
[1744770433131,7.9051,126.51,126.5,0.05712088]
[1744770433335,18.8729467,126.51,126.5,0.05712088]
[1744770433533,7.9075,126.48,126.45,6.1661]
[1744770433734,7.9075,126.48,126.44,30.18]
[1744770433735,10.9678467,126.49,126.44,30.18]